bitfinex-derivatives/quotes_BTCF0:USTF0_20210409
["timestamp","ask_amount","ask_price","bid_price","bid_amount"]
[1617930231330,1.04875418,58386.0,58385.0,1.09903412]
[1617930231601,0.60431999,58386.0,58385.0,0.65843204]
[1617930231801,3.46001999,58386.0,58385.0,0.65843204]
[1617930232003,3.60523013,58386.0,58385.0,0.29859428]
[1617930233521,3.60523013,58386.0,58385.0,0.6593745]
[1617930234508,3.60523013,58386.0,58385.0,0.29859428]
[1617930234907,3.60523013,58386.0,58385.0,0.65942311]
[1617930235207,5.30523013,58386.0,58385.0,0.65942311]
[1617930235407,6.30523013,58386.0,58385.0,0.29859428]
[1617930235811,6.30523013,58386.0,58365.0,0.56154441]
[1617930235812,6.30523013,58386.0,58383.0,0.30103613]
[1617930235813,5.81467013,58386.0,58383.0,0.30103613]
[1617930236009,6.81467013,58386.0,58383.0,0.30103613]
[1617930236412,0.44833819,58384.0,58382.0,0.30115557]
[1617930236611,1.7,58383.0,58382.0,0.30115557]
[1617930236913,0.64834253,58383.0,58382.0,0.30115557]
[1617930237110,6.70414253,58383.0,58382.0,0.30115557]
[1617930237411,6.85231579,58383.0,58382.0,0.30115557]
[1617930238112,5.85231579,58383.0,58382.0,0.30115557]
[1617930238613,7.36179,58383.0,58380.0,0.3011542]
[1617930239013,0.44834907,58381.0,58378.0,0.36134413]
[1617930239313,1.7,58380.0,58378.0,0.36134413]
[1617930239513,0.44835268,58379.0,58378.0,0.36134413]
[1617930239715,1.75560923,58379.0,58378.0,0.36134413]
[1617930240116,1.30725655,58379.0,58378.0,0.30061179]
[1617930240517,1.30725655,58379.0,58378.0,0.36186616]
[1617930240917,1.30725655,58379.0,58378.0,0.30061179]
[1617930242217,2.80725655,58379.0,58378.0,0.30061179]
[1617930243420,3.25498294,58379.0,58378.0,0.30061179]
[1617930243620,3.25498294,58379.0,58377.0,0.30074721]
[1617930243920,1.75498294,58379.0,58377.0,0.30074721]
[1617930244121,1.30725655,58379.0,58377.0,0.30074721]
[1617930244421,1.30725655,58379.0,58378.0,0.30062126]
[1617930244720,2.80725655,58379.0,58378.0,0.30062126]
[1617930246123,2.80725655,58379.0,58377.0,0.30074273]
[1617930246526,3.25499081,58379.0,58377.0,0.30074273]
[1617930247124,2.80725655,58379.0,58377.0,0.30074273]
[1617930247525,1.40185655,58379.0,58378.0,0.3007083]
[1617930247726,1.90185655,58379.0,58378.0,0.3007083]
[1617930249031,2.90185655,58379.0,58378.0,0.3007083]
[1617930249430,3.34956406,58379.0,58376.0,0.30074484]
[1617930249830,1.0,58377.0,58376.0,0.30074484]
[1617930250731,1.0,58377.0,58375.0,0.30053827]
[1617930250931,2.5,58377.0,58375.0,0.30053827]
[1617930251534,1.0,58376.0,58375.0,0.30053827]
[1617930252031,3.66,58377.0,58374.0,0.30058983]
[1617930252531,1.0,58376.0,58374.0,0.30058983]
[1617930252831,1.0,58376.0,58373.0,0.30061193]
[1617930253230,3.66,58377.0,58373.0,0.30061193]
[1617930253434,1.0,58376.0,58373.0,0.30061193]
[1617930254034,1.0,58376.0,58370.0,0.36073432]
[1617930254233,1.0,58376.0,58373.0,0.30057475]
[1617930254433,3.66,58377.0,58373.0,0.30057475]
[1617930254634,3.66,58377.0,58371.0,0.30046564]
[1617930254933,4.66,58377.0,58371.0,0.30046564]
[1617930255134,3.66,58377.0,58371.0,0.30046564]
[1617930255333,4.66,58377.0,58371.0,0.30046564]
[1617930255534,4.66,58377.0,58372.0,0.3004944]
[1617930255834,0.10725655,58373.0,58372.0,0.3004944]
[1617930257035,0.10725655,58373.0,58371.0,0.30048881]
[1617930258338,1.5,58372.0,58371.0,0.30048881]
[1617930258539,6.3828,58372.0,58371.0,0.30048881]
[1617930258841,6.3828,58372.0,58371.0,0.26978881]
[1617930259042,6.3828,58372.0,58369.0,0.30055023]
[1617930259445,6.3828,58372.0,58359.0,0.36117769]
[1617930259446,6.83004006,58372.0,58359.0,0.36117769]
[1617930259840,0.10725655,58360.0,58357.0,0.3612753]
[1617930260043,1.7,58359.0,58357.0,0.3612753]
[1617930260241,1.7,58359.0,58355.0,0.48877613]
[1617930260842,1.7,58359.0,58355.0,0.1274]
[1617930261042,2.5,58356.0,58355.0,0.1274]
[1617930261847,1.0,58356.0,58355.0,0.1274]
[1617930262246,1.5,58358.0,58355.0,0.1274]
[1617930262446,1.0,58356.0,58355.0,0.1274]
[1617930263947,2.5,58356.0,58355.0,0.1274]
[1617930266152,2.7,58356.0,58355.0,0.1274]
[1617930266552,1.7,58356.0,58355.0,0.1274]
[1617930266856,2.7,58356.0,58355.0,0.1274]
[1617930267053,2.5,58356.0,58355.0,0.1274]
[1617930267353,2.7,58356.0,58355.0,0.1274]
[1617930268465,1.2,58356.0,58355.0,0.1274]
[1617930268860,2.5,58356.0,58355.0,0.1274]
[1617930269357,1.0,58356.0,58355.0,0.1274]
[1617930270456,1.2,58356.0,58355.0,0.1274]
[1617930270955,1.0,58356.0,58355.0,0.1274]
[1617930272258,3.6488,58356.0,58355.0,0.1274]
[1617930272759,5.1488,58356.0,58355.0,0.1274]
[1617930277069,2.5,58356.0,58355.0,0.1274]
[1617930278068,2.5,58356.0,58355.0,0.1092]
[1617930278268,2.7,58356.0,58344.0,0.1274]
[1617930278768,1.0,58349.0,58344.0,0.1274]
[1617930279070,1.2,58349.0,58344.0,0.1274]
[1617930279379,1.0,58347.0,58344.0,0.1274]
[1617930279570,1.09746,58347.0,58344.0,0.1274]
[1617930279769,0.09746,58347.0,58344.0,0.1274]
[1617930279971,0.10725655,58345.0,58344.0,0.1274]
[1617930283173,1.60725655,58345.0,58344.0,0.1274]
[1617930283374,2.60725655,58345.0,58344.0,0.1274]
[1617930287882,1.60725655,58345.0,58344.0,0.1274]
[1617930288082,2.60725655,58345.0,58344.0,0.1274]
[1617930290786,1.60725655,58345.0,58344.0,0.1274]
[1617930290986,2.60725655,58345.0,58344.0,0.1274]
[1617930291890,5.77385655,58345.0,58344.0,0.1274]
[1617930295993,2.60725655,58345.0,58344.0,0.1274]
[1617930297494,1.80725655,58345.0,58344.0,0.1274]
[1617930297697,1.60725655,58345.0,58344.0,0.1274]
[1617930297895,2.80725655,58345.0,58344.0,0.1274]
[1617930298295,4.9024,58333.0,58332.0,0.30122107]
[1617930298495,5.05721,58333.0,58332.0,0.30122107]
[1617930298697,5.05721,58333.0,58329.0,0.30129945]
[1617930299099,5.05721,58333.0,58328.0,0.30130444]
[1617930299900,5.05721,58333.0,58332.0,0.301412]
[1617930300702,6.05721,58333.0,58332.0,0.301412]
[1617930301102,6.05721,58333.0,58331.0,0.30146811]
[1617930301802,6.05721,58333.0,58330.0,0.30150495]
[1617930302002,0.10725655,58331.0,58330.0,0.30150495]
[1617930302304,1.60725655,58331.0,58329.0,0.30154984]
[1617930302504,1.10725655,58331.0,58330.0,3.0805841]
[1617930303606,0.10725655,58331.0,58330.0,0.3014841]
[1617930303807,2.85715655,58331.0,58330.0,0.3014841]
[1617930304207,2.85715655,58331.0,58330.0,0.6629881]
[1617930305311,2.85715655,58331.0,58330.0,0.72427452]
[1617930305510,0.10725655,58331.0,58330.0,0.72427452]
[1617930305709,0.10725655,58331.0,58330.0,0.6629881]
[1617930306009,0.10725655,58331.0,58330.0,4.3391881]
[1617930306410,0.10725655,58331.0,58330.0,4.40047409]
[1617930307610,2.7946,58332.0,58330.0,4.40047409]
[1617930307812,1.0,58341.0,58330.0,0.72427409]
[1617930308012,0.10725655,58338.0,58331.0,0.10725655]
[1617930308211,0.44654144,58350.0,58331.0,0.10725655]
[1617930308412,0.44653136,58351.0,58346.0,2.7084]
[1617930308611,0.44653136,58351.0,58346.0,2.81591]
[1617930308812,0.4834,58356.0,58346.0,2.81591]
[1617930308813,0.44652896,58354.0,58346.0,2.81591]
[1617930309312,0.90827415,58355.0,58346.0,2.81591]
[1617930309713,0.4616,58355.0,58346.0,2.81591]
[1617930310113,0.4616,58355.0,58350.0,0.10725655]
[1617930310614,0.44768659,58352.0,58350.0,0.10725655]
[1617930313117,0.44768357,58353.0,58350.0,0.10725655]
[1617930313919,1.44768357,58353.0,58350.0,0.10725655]
[1617930314217,0.44768357,58353.0,58350.0,0.10725655]
[1617930314518,0.90926405,58355.0,58351.0,0.3010166]
[1617930315919,0.90926405,58355.0,58350.0,0.10725655]
[1617930315920,0.4616,58355.0,58353.0,0.30086449]
[1617930316320,0.4616,58355.0,58350.0,0.46829394]
[1617930316321,0.4616,58355.0,58352.0,0.30091667]
[1617930317823,0.4616,58355.0,58353.0,0.30089052]
[1617930318125,0.4616,58355.0,58352.0,0.30092115]
[1617930319424,0.4616,58355.0,58353.0,0.30098084]
[1617930320425,0.90938081,58355.0,58352.0,0.30102951]
[1617930321025,0.90938081,58355.0,58354.0,0.30117575]
[1617930322229,0.90938081,58355.0,58353.0,0.30122238]
[1617930322629,0.44800556,58354.0,58353.0,0.30122238]
[1617930325431,0.58558556,58354.0,58353.0,0.30122238]
[1617930325734,0.58558556,58354.0,58352.0,0.30124992]
[1617930326135,0.44801434,58353.0,58352.0,0.30124992]
[1617930327635,0.58559513,58354.0,58352.0,0.30124992]
[1617930327935,0.44801513,58354.0,58352.0,0.30124992]
[1617930328135,0.44801513,58354.0,58353.0,0.30118237]
[1617930328934,0.90960286,58355.0,58353.0,0.30118237]
[1617930329336,0.90960286,58355.0,58354.0,0.30121642]
[1617930329836,0.90960286,58355.0,58353.0,0.30127508]
[1617930330235,0.90960286,58355.0,58354.0,0.3012916]
[1617930331636,0.90960286,58355.0,58353.0,0.30145546]
[1617930332238,0.44815468,58354.0,58353.0,0.30145546]
[1617930332738,0.44815468,58354.0,58352.0,0.30155323]
[1617930333140,0.44815421,58353.0,58352.0,0.30155323]
[1617930334441,1.44815421,58353.0,58352.0,0.30155323]
[1617930334641,4.99565421,58353.0,58352.0,0.30155323]
[1617930335043,4.99565421,58353.0,58350.0,0.30165987]
[1617930335442,1.44817682,58351.0,58350.0,0.30165987]
[1617930335843,2.94817682,58351.0,58350.0,0.30165987]
[1617930336046,1.44817682,58351.0,58349.0,0.30171457]
[1617930336343,0.10725655,58350.0,58349.0,0.30171457]
[1617930336844,0.55543086,58350.0,58349.0,0.30171457]
[1617930337344,1.55543086,58350.0,58349.0,0.30171457]
[1617930337644,0.55543086,58350.0,58349.0,0.30171457]
[1617930337844,1.55543086,58350.0,58349.0,0.30171457]
[1617930339449,0.55543086,58350.0,58349.0,0.30171457]
[1617930340153,0.10725655,58350.0,58349.0,0.30171457]
[1617930340368,0.10725655,58350.0,58349.0,0.66368435]
[1617930341849,0.10725655,58350.0,58349.0,0.79805435]
[1617930342554,0.10725655,58350.0,58349.0,0.85932941]
[1617930343353,1.10725655,58350.0,58349.0,0.72495941]
[1617930343555,1.10725655,58350.0,58349.0,0.36298963]
[1617930343853,1.55540877,58350.0,58349.0,0.36298963]
[1617930344253,1.10725655,58350.0,58349.0,0.30171457]
[1617930344956,1.55541245,58350.0,58349.0,0.30171457]
[1617930345754,4.36341245,58350.0,58349.0,0.30171457]
[1617930345954,5.86341245,58350.0,58349.0,0.30171457]
[1617930346354,6.02641339,58350.0,58349.0,0.30171457]
[1617930346561,6.02641339,58350.0,58348.0,0.30164526]
[1617930347056,0.61117758,58349.0,58347.0,0.30167612]
[1617930347255,1.61117758,58349.0,58347.0,0.30167612]
[1617930347455,0.44816888,58348.0,58347.0,0.30167612]
[1617930347656,1.44816888,58348.0,58347.0,0.30167612]
[1617930349661,1.44816888,58348.0,58346.0,0.30162014]
[1617930350160,1.16302018,58348.0,58347.0,0.30140265]
[1617930350559,1.61119766,58348.0,58347.0,0.30140265]
[1617930351463,1.61119766,58348.0,58346.0,0.30136909]
[1617930351873,0.44817995,58347.0,58345.0,0.30142277]
[1617930352072,1.44817995,58347.0,58345.0,0.30142277]
[1617930352272,5.02635109,58346.0,58344.0,0.06128098]
[1617930352473,5.17589109,58346.0,58344.0,0.06128098]
[1617930352667,1.0,58345.0,58344.0,0.06128098]
[1617930352867,1.44825465,58345.0,58343.0,0.06128197]
[1617930353179,1.44825465,58345.0,58344.0,0.30147735]
[1617930357273,2.94825465,58345.0,58344.0,0.30147735]
[1617930359875,6.22615465,58345.0,58344.0,0.30147735]
[1617930360477,6.22615465,58345.0,58342.0,0.42879341]
[1617930360875,1.0,58343.0,58342.0,0.42879341]
[1617930361076,2.5,58343.0,58342.0,0.42879341]
[1617930361476,3.11369264,58343.0,58342.0,0.42879341]
[1617930361676,2.11369264,58343.0,58342.0,0.42879341]
[1617930361875,3.11369264,58343.0,58342.0,0.42879341]
[1617930362477,3.22094919,58343.0,58342.0,0.42879341]
[1617930362678,3.22094919,58343.0,58342.0,3.86179341]
[1617930363681,3.22094919,58343.0,58342.0,0.42879341]
[1617930364093,6.35504919,58343.0,58342.0,0.42879341]
[1617930364296,6.40684919,58343.0,58342.0,0.1274]
[1617930364680,6.35504919,58343.0,58342.0,0.1274]
[1617930365083,5.90686886,58343.0,58342.0,0.1274]
[1617930365381,5.90686886,58343.0,58341.0,0.30161145]
[1617930365583,6.35521775,58343.0,58340.0,0.30161947]
[1617930365982,5.35521775,58343.0,58340.0,0.30161947]
[1617930366184,1.5,58340.0,58338.0,0.36189961]
[1617930366585,1.94834373,58340.0,58339.0,0.30158008]
[1617930366984,2.94834373,58340.0,58339.0,0.30158008]
[1617930367285,2.94834373,58340.0,58338.0,0.36189961]
[1617930367485,2.94834373,58340.0,58339.0,0.36288621]
[1617930367685,2.94834373,58340.0,58339.0,0.06128661]
[1617930367885,2.94834373,58340.0,58339.0,0.3628792]
[1617930368285,2.94834373,58340.0,58339.0,0.30159259]
[1617930370288,2.94834373,58340.0,58339.0,0.27569259]
[1617930372189,2.94834373,58340.0,58335.0,0.36195425]
[1617930372688,1.60725655,58336.0,58335.0,0.36195425]
[1617930372890,1.60725655,58336.0,58334.0,0.36198063]
[1617930372891,3.5236,58335.0,58334.0,0.36198063]
[1617930373088,5.0236,58335.0,58334.0,0.36198063]
[1617930373289,5.0236,58335.0,58333.0,0.36201577]
[1617930373490,5.0743,58335.0,58333.0,0.36201577]
[1617930373691,5.4718659,58335.0,58332.0,0.36207863]
[1617930374091,1.5,58333.0,58332.0,0.36207863]
[1617930374290,1.63696,58333.0,58332.0,0.36207863]
[1617930374491,1.63696,58333.0,58328.0,0.1274]
[1617930374492,2.63696,58333.0,58330.0,0.36164849]
[1617930374996,2.63696,58333.0,58331.0,0.36155291]
[1617930375195,1.63696,58333.0,58331.0,0.36155291]
[1617930375502,1.5,58331.0,58329.0,0.36152281]
[1617930375894,4.6909,58330.0,58329.0,0.36152281]
[1617930376095,5.6909,58330.0,58328.0,0.36159739]
[1617930376295,5.6909,58330.0,58328.0,0.12229739]
[1617930376501,5.6909,58330.0,58319.0,0.44222863]
[1617930376696,1.5,58328.0,58319.0,0.44222863]
[1617930377100,1.5,58328.0,58318.0,0.44228916]
[1617930377499,0.06129866,58327.0,58320.0,0.06129866]
[1617930377908,1.0,58321.0,58319.0,0.06129881]
[1617930378103,1.1476,58321.0,58319.0,0.06129881]
[1617930378301,1.1476,58321.0,58315.0,0.44245523]
[1617930378598,0.10725655,58316.0,58315.0,0.44245523]
[1617930379002,1.10725655,58316.0,58315.0,0.44245523]
[1617930379602,1.10725655,58316.0,58314.0,0.44254758]
[1617930380002,1.10725655,58316.0,58313.0,0.44256663]
[1617930380607,1.10725655,58316.0,58312.0,0.44274872]
[1617930381006,1.10725655,58316.0,58311.0,0.44280857]
[1617930381208,1.0,58313.0,58311.0,0.44280857]
[1617930383209,1.0,58312.0,58311.0,0.44280857]
[1617930384911,1.0,58312.0,58299.0,0.06130999]
[1617930384912,1.0,58312.0,58309.0,0.44304277]
[1617930385210,0.10725655,58316.0,58309.0,0.44304277]
[1617930385412,1.0,58312.0,58309.0,0.44304277]
[1617930385713,1.0,58312.0,58308.0,0.44313963]
[1617930385913,1.0,58312.0,58303.0,0.44189028]
[1617930386112,3.0078,58309.0,58303.0,0.44189028]
[1617930386313,3.13065,58309.0,58303.0,0.44189028]
[1617930386718,0.10725655,58304.0,58303.0,0.44189028]
[1617930387324,0.10725655,58304.0,58301.0,0.44203855]
[1617930387614,0.10725655,58304.0,58303.0,0.06131482]
[1617930388024,0.10725655,58304.0,58302.0,0.44196267]
[1617930389636,0.10725655,58304.0,58300.0,0.44251862]
[1617930391118,0.10725655,58304.0,58299.0,0.50420195]
[1617930391434,2.689,58300.0,58299.0,0.50420195]
[1617930392519,2.689,58300.0,58299.0,0.06131454]
[1617930394819,3.689,58300.0,58299.0,0.06131454]
[1617930395922,5.189,58300.0,58299.0,0.06131454]
[1617930396961,5.189,58300.0,58286.0,0.44279009]
[1617930397122,5.189,58300.0,58281.0,0.50317056]
[1617930397123,5.189,58300.0,58283.0,0.44306511]
[1617930397321,1.0,58287.0,58283.0,0.44306511]
[1617930397523,1.0,58287.0,58280.0,0.4433014]
[1617930397524,1.11382,58287.0,58280.0,0.4433014]
[1617930397722,1.0,58285.0,58280.0,0.4433014]
[1617930397923,1.11382,58287.0,58280.0,0.4433014]
[1617930398326,1.0,58281.0,58280.0,0.4433014]
[1617930398724,1.10725655,58281.0,58280.0,0.4433014]
[1617930399526,0.10725655,58281.0,58280.0,0.4433014]
[1617930399727,0.10725655,58281.0,58274.0,0.63115159]
[1617930399728,0.10725655,58281.0,58279.0,0.443396]
[1617930399927,1.10725655,58281.0,58279.0,0.443396]
[1617930400227,1.10725655,58281.0,58280.0,0.06133437]
[1617930400426,0.10725655,58281.0,58280.0,0.06133437]
[1617930400627,1.10725655,58281.0,58280.0,0.30235581]
[1617930401429,1.10725655,58281.0,58280.0,0.66556359]
[1617930403129,0.10725655,58281.0,58280.0,0.66556359]
[1617930403430,1.10725655,58281.0,58280.0,0.66556359]
[1617930405437,1.10725655,58281.0,58280.0,0.30235581]
[1617930407240,1.10725655,58281.0,58275.0,0.06134417]
[1617930407241,1.10725655,58281.0,58279.0,0.30323044]
[1617930407650,1.10725655,58281.0,58274.0,0.429796]
[1617930408742,1.10725655,58281.0,58274.0,0.1274]
[1617930408960,1.0,58275.0,58274.0,0.1274]
[1617930409172,1.11509,58275.0,58274.0,0.1274]
[1617930417947,0.11509,58275.0,58274.0,0.1274]
[1617930418148,1.0,58275.0,58274.0,0.1274]
[1617930418348,1.14522,58275.0,58274.0,0.1274]
[1617930420052,2.64522,58275.0,58274.0,0.1274]
[1617930420250,2.64522,58275.0,58270.0,0.10725655]
[1617930420753,1.0,58271.0,58270.0,0.10725655]
[1617930423853,1.0,58271.0,58268.0,0.302586]
[1617930424854,1.10725655,58269.0,58268.0,0.302586]
[1617930425154,1.10725655,58269.0,58267.0,0.30313696]
[1617930425554,1.0,58268.0,58267.0,0.30313696]
[1617930426858,1.0,58268.0,58263.0,0.30335957]
[1617930427757,1.0,58268.0,58262.0,0.1274]
[1617930428473,1.0,58263.0,58262.0,0.1274]
[1617930428690,1.09772,58263.0,58262.0,0.1274]
[1617930429066,1.20497655,58263.0,58262.0,0.1274]
[1617930429757,1.25567655,58263.0,58262.0,0.1274]
[1617930429957,0.20497655,58263.0,58262.0,0.1274]
[1617930430269,1.20497655,58263.0,58262.0,0.1274]
[1617930431157,2.75667655,58263.0,58262.0,0.1274]
[1617930433360,2.75667655,58263.0,58249.0,0.1274]
[1617930434465,2.75667655,58263.0,58251.0,0.30440365]
[1617930434863,1.75667655,58263.0,58251.0,0.30440365]
[1617930435158,2.60725655,58252.0,58251.0,0.30440365]
[1617930435360,2.60725655,58252.0,58250.0,0.30440287]
[1617930436060,2.60725655,58252.0,58249.0,0.43180494]
[1617930436259,1.0,58251.0,58249.0,0.43180494]
[1617930436464,1.0,58250.0,58249.0,0.1274]
[1617930438967,1.11375,58250.0,58249.0,0.1274]
[1617930443672,1.16455,58250.0,58249.0,0.1274]
[1617930444176,1.11375,58250.0,58249.0,0.1274]
[1617930446074,2.61375,58250.0,58249.0,0.1274]
[1617930448978,2.61375,58250.0,58236.0,0.30333168]
[1617930449777,2.61375,58250.0,58237.0,0.30333114]
[1617930450279,2.61375,58250.0,58236.0,0.30333058]
[1617930451078,1.10725655,58237.0,58235.0,0.1274]
[1617930451278,1.25966655,58237.0,58235.0,0.1274]
[1617930451480,0.25966655,58237.0,58235.0,0.1274]
[1617930451680,1.0,58236.0,58235.0,0.1274]
[1617930452485,1.0,58236.0,58235.0,0.43073002]
[1617930452783,4.6909,58236.0,58235.0,0.43073002]
[1617930453283,1.0,58236.0,58235.0,0.43073002]
[1617930453485,1.0,58236.0,58235.0,3.1161]
[1617930453684,1.0,58253.0,58235.0,3.1161]
[1617930453985,1.0,58254.0,58235.0,0.93266065]
[1617930454184,0.4516,58262.0,58252.0,3.4024]
[1617930454400,0.4516,58262.0,58252.0,3.5242]
[1617930455185,0.10725655,58253.0,58252.0,3.5242]
[1617930456886,1.10725655,58253.0,58252.0,3.5242]
[1617930458184,0.10725655,58253.0,58252.0,0.1218]
[1617930458385,4.03295655,58253.0,58245.0,0.30396771]
[1617930458986,1.0,58247.0,58244.0,0.41121665]
[1617930459387,1.0,58246.0,58244.0,0.41121665]
[1617930460389,1.0,58245.0,58244.0,0.41121665]
[1617930460791,3.03295655,58253.0,58244.0,0.41121665]
[1617930460991,0.10725655,58253.0,58244.0,0.41121665]
[1617930461192,1.0,58245.0,58244.0,0.41121665]
[1617930464296,1.0,58245.0,58244.0,0.10725655]
[1617930465200,1.0,58245.0,58244.0,0.41142944]
[1617930465810,4.6358,58245.0,58244.0,0.41142944]
[1617930466208,3.6358,58245.0,58244.0,0.10725655]
[1617930467001,4.6358,58245.0,58244.0,0.10725655]
[1617930467303,3.6358,58245.0,58244.0,0.10725655]
[1617930467507,4.6358,58245.0,58244.0,0.10725655]
[1617930467803,4.6358,58245.0,58244.0,0.47279583]
[1617930468206,4.6358,58245.0,58244.0,0.10725655]
[1617930468207,1.0,58245.0,58244.0,0.10725655]
[1617930468604,0.10725655,58247.0,58244.0,0.10725655]
[1617930468605,1.10725655,58247.0,58244.0,0.47279231]
[1617930468803,1.10725655,58247.0,58244.0,0.60417231]
[1617930469005,1.10725655,58247.0,58246.0,0.67014125]
[1617930469205,0.10725655,58247.0,58246.0,0.67014125]
[1617930469405,1.0,58254.0,58246.0,0.67014125]
[1617930469607,1.0,58254.0,58247.0,3.5097]
[1617930469810,0.4748,58259.0,58251.0,0.30459603]
[1617930470211,2.8688,58252.0,58250.0,0.30460423]
[1617930470608,3.8688,58252.0,58250.0,0.30460423]
[1617930470908,1.0,58251.0,58248.0,0.30460712]
[1617930471109,1.0,58250.0,58248.0,0.36585641]
[1617930471608,1.0,58250.0,58249.0,0.67073579]
[1617930471808,0.10725655,58251.0,58249.0,0.67073579]
[1617930472010,1.0,58250.0,58249.0,0.67073579]
[1617930472411,1.0,58250.0,58249.0,0.3048799]
[1617930472911,1.0,58250.0,58249.0,0.67073664]
[1617930473311,1.0,58250.0,58249.0,0.3048799]
[1617930473712,1.0,58250.0,58249.0,0.67073874]
[1617930474112,1.0,58250.0,58249.0,0.3048799]
[1617930474325,1.60578,58250.0,58249.0,0.3048799]
[1617930474527,6.29678,58250.0,58249.0,0.3048799]
[1617930475113,6.29678,58250.0,58244.0,0.30490344]
[1617930475114,4.79678,58250.0,58244.0,0.30490344]
[1617930475312,0.10725655,58245.0,58244.0,0.30490344]
[1617930475515,0.10725655,58245.0,58240.0,0.36589794]
[1617930475712,1.10725655,58245.0,58240.0,0.36589794]
[1617930475914,1.10725655,58245.0,58239.0,0.36589859]
[1617930476322,1.10725655,58245.0,58238.0,0.36590001]
[1617930477215,0.10725655,58239.0,58238.0,0.36590001]
[1617930477614,0.10725655,58239.0,58237.0,0.36590356]
[1617930477815,1.10725655,58239.0,58237.0,0.36590356]
[1617930478417,1.47211425,58239.0,58238.0,0.81744569]
[1617930479920,1.47211425,58239.0,58238.0,1.32835126]
[1617930480523,1.47211425,58239.0,58238.0,0.81744569]
[1617930480823,1.47211425,58239.0,58238.0,0.87883248]
[1617930481225,1.47211425,58239.0,58238.0,0.81744569]
[1617930483227,1.10725655,58239.0,58238.0,0.81744569]
[1617930483629,1.47181859,58239.0,58238.0,0.81744569]
[1617930486132,1.47181859,58239.0,58238.0,0.36785056]
[1617930487333,0.47181859,58239.0,58238.0,0.81682582]
[1617930487532,1.47181859,58239.0,58238.0,0.81682582]
[1617930488136,1.47181859,58239.0,58238.0,0.36785056]
[1617930490933,0.47181859,58239.0,58238.0,0.36785056]
[1617930491133,1.47181859,58239.0,58238.0,0.36785056]
[1617930492035,4.97061859,58239.0,58238.0,0.36785056]
[1617930494249,4.97061859,58239.0,58238.0,0.34205056]
[1617930494440,4.97061859,58239.0,58238.0,0.4034392]
[1617930494838,4.97061859,58239.0,58238.0,0.34205056]
[1617930500661,3.97061859,58239.0,58238.0,0.34205056]
[1617930500875,6.47061859,58239.0,58238.0,0.34205056]
[1617930501068,6.47061859,58239.0,58238.0,0.30005056]
[1617930501288,6.91554697,58239.0,58226.0,0.44872046]
[1617930501465,0.10725655,58227.0,58226.0,0.44872046]
[1617930501668,0.20796655,58227.0,58226.0,0.44872046]
[1617930501849,0.20796655,58227.0,58221.0,0.1274]
[1617930502252,0.20796655,58227.0,58195.0,0.71392731]
[1617930502253,1.0,58222.0,58218.0,0.44876023]
[1617930502551,3.8269,58219.0,58215.0,0.44875908]
[1617930503150,3.8269,58219.0,58214.0,0.44876864]
[1617930503371,0.10725655,58215.0,58214.0,0.44876864]
[1617930503552,1.21711655,58215.0,58209.0,0.50996076]
[1617930503951,1.21711655,58215.0,58214.0,0.44876504]
[1617930505251,1.21711655,58215.0,58214.0,0.75473923]
[1617930505761,1.21711655,58215.0,58214.0,0.30597419]
[1617930506772,0.21711655,58215.0,58214.0,0.30597419]
[1617930506970,1.21711655,58215.0,58214.0,0.30597419]
[1617930511057,1.21711655,58215.0,58211.0,0.30488113]
[1617930511958,1.0,58212.0,58211.0,0.30488113]
[1617930515061,0.10472,58212.0,58211.0,0.30488113]
[1617930515463,1.10472,58212.0,58211.0,0.30488113]
[1617930515661,1.10472,58212.0,58205.0,0.1274]
[1617930516061,0.10472,58212.0,58210.0,2.4731]
[1617930516370,1.10725655,58215.0,58208.0,0.12684]
[1617930516561,0.10725655,58215.0,58211.0,2.8928]
[1617930516762,0.44240603,58218.0,58211.0,2.8928]
[1617930516962,1.0,58222.0,58211.0,2.8928]
[1617930517661,1.0,58222.0,58218.0,0.10725655]
[1617930517964,1.0,58224.0,58218.0,0.10725655]
[1617930518263,0.10725655,58225.0,58218.0,0.10725655]
[1617930519063,0.10725655,58225.0,58224.0,2.7041]
[1617930519263,0.10725655,58225.0,58224.0,2.82992]
[1617930521466,1.10725655,58225.0,58224.0,2.82992]
[1617930521665,1.10725655,58225.0,58224.0,2.7041]
[1617930523266,1.10725655,58225.0,58224.0,2.8595]
[1617930523868,0.10725655,58225.0,58224.0,2.8595]
[1617930524867,0.10725655,58225.0,58224.0,0.1554]
[1617930526974,1.10725655,58225.0,58218.0,0.47306686]
[1617930527171,1.10725655,58225.0,58218.0,0.10725655]
[1617930529178,1.0,58224.0,58218.0,0.10725655]
[1617930529378,1.0,58224.0,58218.0,0.47306212]
[1617930530277,1.10725655,58225.0,58218.0,0.47306212]
[1617930530577,1.0,58224.0,58218.0,0.47306212]
[1617930531178,1.0,58224.0,58220.0,0.36620387]
[1617930531478,1.0,58224.0,58221.0,0.36620623]
[1617930532079,1.0,58224.0,58221.0,0.42761041]
[1617930532381,1.0,58224.0,58223.0,3.1507]
[1617930532781,1.0,58224.0,58223.0,3.21210472]
[1617930535084,1.0,58224.0,58223.0,0.06140472]
[1617930536185,1.0,58224.0,58221.0,0.36640571]
[1617930536386,1.0,58224.0,58220.0,0.36640877]
[1617930537490,1.0,58224.0,58219.0,0.366417]
[1617930537688,1.0,58222.0,58219.0,0.366417]
[1617930538790,1.0,58222.0,58218.0,0.36642037]
[1617930539392,1.0,58222.0,58219.0,0.36641999]
[1617930539791,1.0,58222.0,58219.0,0.06140801]
[1617930540193,1.0,58222.0,58220.0,0.06140795]
[1617930540595,1.0,58222.0,58218.0,0.36642073]
[1617930541093,1.0,58222.0,58216.0,0.36642964]
[1617930541293,0.3633469,58224.0,58216.0,0.36642964]
[1617930541493,1.10725655,58225.0,58219.0,0.06140811]
[1617930541494,0.47068678,58225.0,58219.0,0.06140811]
[1617930541894,0.10725655,58225.0,58219.0,0.36641738]
[1617930542294,1.10725655,58225.0,58219.0,0.36641738]
[1617930542496,1.0,58222.0,58219.0,0.36641738]
[1617930542894,1.0,58222.0,58220.0,0.36647248]
[1617930543194,1.0,58222.0,58220.0,0.06140747]
[1617930543493,1.0,58221.0,58220.0,0.06140747]
[1617930543694,1.0,58221.0,58218.0,0.36647401]
[1617930544295,1.0,58220.0,58218.0,0.36647401]
[1617930544496,1.0,58221.0,58218.0,0.36647401]
[1617930544998,1.0,58220.0,58218.0,0.36647401]